fUSD/lending_fUSD_20260313
["ID","MTS","AMOUNT","RATE_DAILY","PERIOD"]
[408330516,1773439856540,-150.0,0.00023726,17]
[408330517,1773439856549,-260.0,0.00023726,5]
[408330518,1773439856559,-500.0,0.00023726,2]
[408330519,1773439856569,-500.0,0.00023726,7]
[408330520,1773439856578,-500.0,0.00023726,2]
[408330521,1773439856589,-150.0,0.00023726,14]
[408330522,1773439856599,-1000.0,0.00023731,2]
[408330523,1773439856610,-1000.0,0.00023752,2]
[408330524,1773439856620,-150.0,0.00023781,17]
[408330525,1773439856630,-500.0,0.00023781,2]
[408330526,1773439856640,-500.0,0.00023781,7]
[408330527,1773439856650,-500.0,0.00023781,2]
[408330528,1773439856660,-150.0,0.00023781,14]
[408330529,1773439856669,-1317.27229628,0.00023781,2]
[408330530,1773439856678,-200.0,0.00023781,2]
[408330531,1773439856687,-260.0,0.00023781,5]
[408330532,1773439856696,-220.02326955,0.00023836,17]
[408330533,1773439856705,-150.0,0.00023836,2]
[408330534,1773439856715,-500.0,0.00023836,7]
[408330535,1773439856724,-500.0,0.00023836,2]
[408330536,1773439856733,-150.0,0.00023836,14]
[408330537,1773439856742,-260.0,0.00023836,5]
[408330538,1773439856752,-400.0,0.0002387,2]
[408330539,1773439856762,-1028.17250405,0.00023879,2]
[408330540,1773439856773,-150.0,0.00023889,2]
[408330541,1773439856783,-260.0,0.0002389,5]
[408330542,1773439856792,-500.0,0.0002389,7]
[408330543,1773439856801,-500.0,0.0002389,2]
[408330544,1773439856810,-250.0,0.0002389,14]
[408330545,1773439856820,-304.0,0.000239,2]
[408330546,1773439856829,-995.0,0.000239,2]
[408330547,1773439856839,-311.0,0.000239,2]
[408330548,1773439856849,-203.0,0.000239,2]
[408330549,1773439856858,-350.0,0.00023915,2]
[408330550,1773439856867,-1000.0,0.00023917,2]
[408330551,1773439856876,-1000.0,0.00023931,2]
[408330552,1773439856885,-991.13952392,0.00023942,2]
[408330553,1773439856895,-260.0,0.00023945,5]
[408330554,1773439856904,-500.0,0.00023945,7]
[408330555,1773439856913,-500.0,0.00023945,2]
[408330556,1773439856922,-1000.0,0.00023949,2]
[408330557,1773439856934,-1000.0,0.00023966,2]
[408330558,1773439856952,-400.0,0.0002397,2]
[408330559,1773439856966,-150.0,0.00023982,7]
[408330560,1773439856980,-150.0,0.00023982,7]
[408330561,1773439856995,-166.0,0.00023982,7]
[408330562,1773439857011,-1000.0,0.00023982,2]
[408330563,1773439857027,-500.0,0.00024,7]
[408330564,1773439857038,-500.0,0.00024,2]
[408330565,1773439857054,-3600.0,0.00024,2]
[408330566,1773439857068,-1028.12121807,0.00024,2]
[408330567,1773439857082,-1243.04645278,0.00024,2]
[408330568,1773439857097,-300.0,0.00024,2]
[408330569,1773439857111,-2000.0,0.00024,2]
[408330570,1773439857127,-152.0,0.00024,2]
[408330571,1773439857140,-260.0,0.00024,5]
[408330572,1773439857155,-160.34252941,0.00024,2]
[408330573,1773439857167,-1653.16543956,0.00024,2]
[408330574,1773439857183,-1653.16543956,0.00024,2]
[408330575,1773439857198,-2016.5161602,0.00024,2]
[408330576,1773439857210,-2016.5161602,0.00024,2]
[408330577,1773439857223,-683.12079185,0.00024,2]
[408330578,1773439857235,-683.12079185,0.00024,2]
[408330579,1773439857252,-1042.87085396,0.00024,2]
[408330580,1773439857263,-500.0,0.00024,2]
[408330581,1773439857274,-150.0,0.00024,2]
[408330582,1773439857288,-163.41247159,0.00024,2]
[408330583,1773439857301,-823.0,0.0002402,2]
[408330584,1773439857313,-500.0,0.00024055,7]
[408330585,1773439857327,-438.96956212,0.00024055,2]
[408330586,1773439857341,-223.95,0.00024067,2]
[408330587,1773439857353,-285.89237635,0.00024079,10]
[408330588,1773439857365,-500.0,0.0002411,7]
[408330589,1773439857377,-422.69,0.00024136,2]
[408330590,1773439857389,-150.0,0.00024156,7]
[408330591,1773439857403,-150.0,0.00024156,7]
[408330592,1773439857416,-236.0,0.00024156,7]
[408330593,1773439857427,-515.17330698,0.00024164,7]
[408330594,1773439857439,-204034.1455898,0.00024166,2]
[408330595,1773439857451,-15891.4051005,0.00024166,2]
[408330596,1773439857463,-2179.4247203,0.00024166,2]
[408330597,1773439857477,-1000.0,0.00024191,2]
[408330598,1773439857489,-2808.0,0.000242,3]
[408330599,1773439857503,-3721.30404473,0.0002421,2]
[408330600,1773439857515,-424.67830324,0.0002421,2]
[408330601,1773439857527,-538.4,0.00024272,2]
[408330602,1773439857539,-2500.0,0.00024274,7]
[408330603,1773439857551,-150.0,0.00024309,7]
[408330604,1773439857563,-252.392799,0.00024312,7]
[408330605,1773439857575,-1000.0,0.00024342,2]
[408330606,1773439857587,-151.0,0.00024347,7]
[408330607,1773439857599,-177555.674398,0.0002435,2]
[408330608,1773439857612,-1000.0,0.00024465,2]
[408330609,1773439857626,-5641.3562298,0.00024483,2]
[408330610,1773439857639,-2802.0,0.0002452,3]
[408330611,1773439857651,-150.0,0.00024524,7]
[408330612,1773439857663,-268.0,0.00024524,7]
[408330613,1773439857676,-1000.0,0.00024548,7]
[408330614,1773439857688,-500.0,0.00024548,7]
[408330615,1773439857701,-5555.0,0.00024654,2]
[408330616,1773439857714,-2000.0,0.00024657,2]
[408330617,1773439857729,-1000.0,0.00024658,2]
[408330618,1773439857742,-151.0,0.00024658,2]
[408330619,1773439857754,-151.0,0.00024658,2]
[408330620,1773439857768,-151.0,0.00024658,2]
[408330621,1773439857783,-151.0,0.00024658,2]
[408330622,1773439857796,-151.0,0.00024658,2]
[408330623,1773439857811,-152.055082,0.00024658,2]
[408330624,1773439857824,-156.157635,0.00024658,2]
[408330625,1773439857837,-1000.0,0.00024739,2]
[408330626,1773439857852,-10501.58089548,0.00024769,4]
[408330627,1773439857865,-153.56106976,0.00024772,2]
[408330628,1773439857877,-151.0,0.00024897,7]
[408330629,1773439857889,-151.0,0.00024897,7]
[408330630,1773439857903,-3057.9390564,0.00025,2]
[408330631,1773439857915,-7159.53028566,0.00025,2]
[408330632,1773439857928,-3806.10080392,0.00025,2]
[408330633,1773439857941,-213.6,0.00025,2]
[408330634,1773439857952,-1118.84881927,0.00025,2]
[408330635,1773439857965,-208.42984893,0.00025,2]
[408330636,1773439857978,-1792.76358608,0.00025,2]
[408330637,1773439857990,-540.0,0.00025,2]
[408330638,1773439858002,-613.52859011,0.00025,2]
[408330639,1773439858014,-168.04143646,0.00025,2]
[408330640,1773439858027,-171.98358541,0.00025,5]
[408330641,1773439858039,-1333.90051798,0.00025,4]
[408330642,1773439858052,-500.0,0.00025,2]
[408330643,1773439858064,-250.5250226,0.00025,7]
[408330644,1773439858077,-350.0,0.00025001,2]
[408330645,1773439858101,-1000.0,0.00025013,2]
[408330646,1773439858113,-190.14427016,0.00025014,2]
[408330647,1773439858126,-223.95,0.0002507,2]
[408330648,1773439858139,-380.0,0.00025178,2]
[408330649,1773439858153,-1000.0,0.00025287,2]
[408330650,1773439858166,-150.0,0.00025299,7]
[408330651,1773439858181,-258.0,0.00025299,7]
[408330652,1773439858193,-157.02,0.00025342,2]
[408330653,1773439858213,-422.69,0.00025343,2]
[408330654,1773439858233,-2500.0,0.0002537,7]
[408330655,1773439858254,-49769.10260997,0.0002539,2]
[408330656,1773439858462,-6994.0,0.00025412,2]
[408330657,1773439858479,-1258.756719,0.00025484,2]
[408330658,1773439858490,-2000.0,0.00025504,2]
[408330659,1773439858503,-207.63639465,0.00025537,2]
[408330660,1773439858513,-228.06,0.00025537,2]
[408330661,1773439858523,-350.0,0.00025538,3]
[408330662,1773439858534,-1000.0,0.00025561,2]
[408330663,1773439858543,-1000.0,0.00025644,7]
[408330664,1773439858554,-500.0,0.00025644,7]
[408330665,1773439858564,-538.4,0.00025689,2]
[408330666,1773439858574,-27161.0,0.00025705,2]
[408330667,1773439858584,-1500.0,0.00025712,2]
[408330668,1773439858593,-5998.0,0.0002579,2]
[408330669,1773439858604,-2463.0,0.0002579,2]
[408330670,1773439858614,-3753.0,0.0002579,2]
[408330671,1773439858625,-1999.0,0.00025835,2]
[408330672,1773439858635,-603.60594847,0.0002599,2]
[408330673,1773439858648,-4544.83031533,0.00026,2]
[408330674,1773439858659,-217.46129768,0.00026,2]
[408330675,1773439858669,-1153.0,0.00026,2]
[408330676,1773439858679,-150.0,0.00026,2]
[408330677,1773439858689,-150.0,0.00026,2]
[408330678,1773439858699,-3508.0,0.00026,2]
[408330679,1773439858708,-620.0,0.00026,2]
[408330680,1773439858719,-1343.0,0.00026,2]
[408330681,1773439858729,-1259.0,0.00026,2]
[408330682,1773439858739,-1214.0,0.00026,2]
[408330683,1773439858748,-68375.0,0.00026,2]
[408330684,1773439858758,-223.95,0.00026072,2]
[408330685,1773439858767,-350.0,0.00026178,3]
[408330686,1773439858779,-561.0,0.00026194,2]
[408330687,1773439858789,-350.0,0.00026197,2]
[408330688,1773439858798,-5087.841418,0.00026215,30]
[408330689,1773439858808,-266.14,0.00026218,2]
[408330690,1773439858819,-350.0,0.00026244,5]
[408330691,1773439858828,-204034.1455898,0.00026262,2]
[408330692,1773439858838,-15891.4051005,0.00026262,2]
[408330693,1773439858848,-2179.4247203,0.00026262,2]
[408330694,1773439858857,-613.09023483,0.000263,2]
[408330695,1773439858866,-1090.42169431,0.000264,2]
[408330696,1773439858876,-177555.674398,0.00026526,2]
[408330697,1773439858885,-5533.0,0.000266,3]
[408330698,1773439858894,-260.0,0.00026626,8]
[408330699,1773439858904,-1000.0,0.0002674,7]
[408330700,1773439858914,-500.0,0.0002674,7]
[408330701,1773439858923,-5642.0,0.00026987,2]
[408330702,1773439858933,-1039.45466224,0.00027,2]
[408330703,1773439858942,-530.0,0.00027,2]
[408330704,1773439858952,-250.0,0.00027,2]
[408330705,1773439858961,-816.0,0.00027,2]
[408330706,1773439858970,-2000.0,0.00027,2]
[408330707,1773439858981,-2510.677558,0.0002701,2]
[408330708,1773439858990,-157.02,0.00027055,2]
[408330709,1773439859000,-223.95,0.00027075,2]
[408330710,1773439859010,-2000.0,0.00027082,2]
[408330711,1773439859019,-538.4,0.00027106,2]
[408330712,1773439859028,-1871.91,0.00027113,2]
[408330713,1773439859037,-5533.0,0.000273,5]
[408330714,1773439859047,-2598.0,0.00027368,2]
[408330715,1773439859056,-150.0,0.00027369,2]
[408330716,1773439859065,-169.57064964,0.0002737,2]
[408330717,1773439859074,-4132.48453585,0.0002739,2]
[408330718,1773439859084,-8163.83390507,0.0002739,2]
[408330719,1773439859094,-4448.89109208,0.0002739,7]
[408330720,1773439859104,-2022.63193843,0.00027397,12]
[408330721,1773439859113,-2033.039,0.00027397,2]
[408330722,1773439859122,-323.3857082,0.00027397,7]
[408330723,1773439859131,-1000.0,0.00027397,20]
[408330724,1773439859141,-300.0,0.00027397,2]
[408330725,1773439859150,-151.0,0.00027397,2]
[408330726,1773439859159,-151.0,0.00027397,2]
[408330727,1773439859169,-151.0,0.00027397,2]
[408330728,1773439859178,-151.0,0.00027397,2]
[408330729,1773439859188,-151.0,0.00027397,2]
[408330730,1773439859197,-151.0,0.00027397,2]
[408330731,1773439859207,-151.0,0.00027397,2]
[408330732,1773439859215,-266.982015,0.00027397,2]
[408330733,1773439859226,-2517.437115,0.00027397,2]
[408330734,1773439859235,-2517.437115,0.00027397,2]
[408330735,1773439859244,-2517.437115,0.00027397,2]
[408330736,1773439859254,-2517.437115,0.00027397,2]
[408330737,1773439859263,-2517.437115,0.00027397,2]
[408330738,1773439859273,-2517.437115,0.00027397,2]
[408330739,1773439859282,-2517.437115,0.00027397,2]
[408330740,1773439859291,-2517.437115,0.00027397,2]
[408330741,1773439859300,-2517.437115,0.00027397,2]
[408330742,1773439859309,-2517.437115,0.00027397,2]
[408330743,1773439859319,-2517.437115,0.00027397,2]
[408330744,1773439859328,-2517.437115,0.00027397,2]
[408330745,1773439859337,-2517.437115,0.00027397,2]
[408330746,1773439859346,-2517.437115,0.00027397,2]
[408330747,1773439859355,-2517.437115,0.00027397,2]
[408330748,1773439859365,-2517.437115,0.00027397,2]
[408330749,1773439859375,-2517.437115,0.00027397,2]
[408330750,1773439859384,-2517.437115,0.00027397,2]
[408330751,1773439859394,-2517.437115,0.00027397,2]
[408330752,1773439859404,-2517.437123,0.00027397,2]
[408330753,1773439859413,-237.032154,0.00027397,2]
[408330754,1773439859423,-13346.13,0.00027397,10]
[408330755,1773439859432,-500.0,0.00027397,5]
[408330756,1773439859441,-212.73266826,0.00027397,4]
[408330757,1773439859450,-166.0,0.00027397,2]
[408330758,1773439859460,-160.64324876,0.00027397,5]
[408330759,1773439859469,-153.92401772,0.00027397,2]
[408330760,1773439859479,-552.57982317,0.000275,2]
[408330761,1773439859489,-202.3101719,0.000275,2]
[408330762,1773439859499,-2500.0,0.00027562,14]
[408330763,1773439859508,-549.75570395,0.00027671,30]
[408330764,1773439859518,-2000.0,0.000277,2]
[408330765,1773439859528,-2000.0,0.00027822,2]
[408330766,1773439859537,-1000.0,0.00027836,14]
[408330767,1773439859546,-500.0,0.00027836,14]
[408330768,1773439859557,-1967.10436,0.00027914,30]
[408330769,1773439859567,-500.0,0.00027943,7]
[408330770,1773439859576,-458.12975329,0.00027945,30]
[408330771,1773439859586,-51140.63379978,0.00028,2]
[408330772,1773439859596,-160.0,0.00028,2]
[408330773,1773439859606,-562.66973994,0.00028,5]
[408330774,1773439859615,-643.0,0.00028,2]
[408330775,1773439859624,-2808.0,0.00028075,3]
[408330776,1773439859635,-366.50380263,0.00028356,30]
[408330777,1773439859647,-225.79420196,0.00028403,2]
[408330778,1773439859657,-500.0,0.00028433,7]
[408330779,1773439859667,-2000.0,0.00028452,5]
[408330780,1773439859676,-538.4,0.00028524,2]
[408330781,1773439859687,-274.87785197,0.00028767,30]
[408330782,1773439859697,-157.02,0.00028767,2]
[408330783,1773439859707,-1037.92088178,0.00028767,5]
[408330784,1773439859717,-5998.0,0.0002879,2]
[408330785,1773439859727,-2463.0,0.0002879,2]
[408330786,1773439859737,-3753.0,0.0002879,2]
[408330787,1773439859749,-9852.0,0.00028888,2]
[408330788,1773439859759,-1748.95052862,0.00029,2]
[408330789,1773439859769,-505.10285517,0.00029,2]
[408330790,1773439859782,-3500.0,0.00029,2]
[408330791,1773439859792,-620.0,0.00029,2]
[408330792,1773439859802,-1259.0,0.00029,2]
[408330793,1773439859812,-1207.0,0.00029,2]
[408330794,1773439859823,-816.0,0.00029,2]
[408330795,1773439859832,-152.0,0.00029102,3]
[408330796,1773439859844,-2500.0,0.00029206,14]
[408330797,1773439859853,-500.0,0.00029433,7]
[408330798,1773439859863,-183.25190132,0.00029452,30]
[408330799,1773439859873,-500.0,0.00029461,7]
[408330800,1773439859882,-1000.0,0.0002948,14]
[408330801,1773439859891,-500.0,0.0002948,14]
[408330802,1773439859900,-985.0,0.00029658,2]
[408330803,1773439859910,-814.0,0.00029681,7]
[408330804,1773439859919,-823.820744,0.00029718,15]
[408330805,1773439859929,-153.56106978,0.00029727,2]
[408330806,1773439859938,-152.0,0.00029851,4]
[408330807,1773439859948,-505.0,0.00029877,2]
[408330808,1773439859957,-76350.73012713,0.000299,2]
[408330809,1773439859967,-381.0,0.000299,10]
[408330810,1773439859976,-538.4,0.00029941,2]
[408330811,1773439859986,-238.70776968,0.0002999,2]
[408330812,1773439859996,-18567.83355359,0.0003,2]
[408330813,1773439860005,-19996.05559503,0.0003,2]
[408330814,1773439860015,-2000.0,0.0003,2]
[408330815,1773439860024,-1289.0,0.0003,30]
[408330816,1773439860034,-169.7257921,0.0003,7]
[408330817,1773439860044,-169.7257921,0.0003,7]
[408330818,1773439860054,-1565.83184232,0.0003,2]
[408330819,1773439860064,-2000.0,0.0003,3]
[408330820,1773439860073,-321.30340049,0.0003,2]
[408330821,1773439860083,-1829.08936058,0.0003,2]
[408330822,1773439860093,-579.68619526,0.0003,4]
[408330823,1773439860102,-164.0570546,0.0003,2]
[408330824,1773439860111,-169.18648449,0.0003,7]
[408330825,1773439860120,-169.18648449,0.0003,7]
[408330826,1773439860129,-2567.68851908,0.0003,7]
[408330827,1773439860138,-3303.3675613,0.0003,10]
[408330828,1773439860148,-3056.0,0.0003,2]
[408330829,1773439860157,-12619.88574577,0.0003,2]
[408330830,1773439860165,-500.0,0.0003,30]
[408330831,1773439860175,-2506.808623,0.0003,2]
[408330832,1773439860184,-5941.88645415,0.0003,3]
[408330833,1773439860194,-500.0,0.0003005,7]
[408330834,1773439860204,-13942.44127171,0.0003013,2]
[408330835,1773439860214,-7782.14002679,0.0003013,2]
[408330836,1773439860223,-638.09633532,0.0003013,2]
[408330837,1773439860232,-202.99434602,0.0003013,2]
[408330838,1773439860241,-1080.50562639,0.0003013,2]
[408330839,1773439860250,-3119.13876922,0.0003013,2]
[408330840,1773439860260,-587.390273,0.00030137,7]
[408330841,1773439860269,-587.390273,0.00030137,7]
[408330842,1773439860279,-587.390273,0.00030137,7]
[408330843,1773439860288,-587.390273,0.00030137,7]
[408330844,1773439860297,-587.390273,0.00030137,7]
[408330845,1773439860307,-587.390273,0.00030137,7]
[408330846,1773439860316,-587.390273,0.00030137,7]
[408330847,1773439860325,-587.390273,0.00030137,7]
[408330848,1773439860335,-587.390273,0.00030137,7]
[408330849,1773439860345,-587.390273,0.00030137,7]
[408330850,1773439860354,-587.390273,0.00030137,7]
[408330851,1773439860363,-587.390273,0.00030137,7]
[408330852,1773439860372,-587.390273,0.00030137,7]
[408330853,1773439860382,-587.390273,0.00030137,7]
[408330854,1773439860391,-587.390273,0.00030137,7]
[408330855,1773439860400,-587.390273,0.00030137,7]
[408330856,1773439860410,-587.390273,0.00030137,7]
[408330857,1773439860419,-587.390273,0.00030137,7]
[408330858,1773439860430,-587.390273,0.00030137,7]
[408330859,1773439860442,-587.390274,0.00030137,7]
[408330860,1773439860451,-15637.88771353,0.000302,2]
[408330861,1773439860460,-5772.75,0.000302,7]
[408330862,1773439860470,-7922.5,0.000302,7]
[408330863,1773439860479,-500.0,0.00030329,7]
[408330864,1773439860488,-5142.0,0.00030444,2]
[408330865,1773439860497,-157.02,0.00030479,2]
[408330866,1773439860506,-1000.0,0.00030533,2]
[408330867,1773439860516,-152.0,0.000306,5]
[408330868,1773439860525,-2544.86,0.000306,14]
[408330869,1773439860534,-150.0,0.00030669,2]
[408330870,1773439860544,-505.0,0.00030698,2]
[408330871,1773439860553,-1619.18571458,0.0003084,2]
[408330872,1773439860562,-2500.0,0.0003085,14]
[408330873,1773439860571,-500.0,0.00030854,7]
[408330874,1773439860580,-500.0,0.00030898,7]
[408330875,1773439860590,-1000.0,0.00030914,2]
[408330876,1773439860599,-1500.0,0.00030943,15]
[408330877,1773439860608,-1547.527284,0.00030943,15]
[408330878,1773439860618,-500.0,0.00030977,7]
[408330879,1773439860627,-51902.83344004,0.00031,2]
[408330880,1773439860636,-345.75649176,0.00031,5]
[408330881,1773439860645,-5772.75,0.00031,7]
[408330882,1773439860655,-7922.5,0.00031,7]
[408330883,1773439860664,-150.0,0.00031004,2]
[408330884,1773439860673,-1000.0,0.00031124,14]
[408330885,1773439860682,-500.0,0.00031124,14]
[408330886,1773439860691,-161.02,0.00031161,5]
[408330887,1773439860701,-161.02,0.00031161,5]
[408330888,1773439860710,-161.02,0.00031161,5]
[408330889,1773439860719,-161.02,0.00031161,5]
[408330890,1773439860728,-161.02,0.00031161,5]
[408330891,1773439860738,-161.02,0.00031161,5]
[408330892,1773439860747,-1204.2542,0.00031255,2]
[408330893,1773439860756,-1617.73285831,0.00031305,2]
[408330894,1773439860765,-152.0,0.00031348,6]
[408330895,1773439860777,-538.4,0.00031358,2]
[408330896,1773439860786,-2000.0,0.000314,2]
[408330897,1773439860795,-1000.0,0.00031459,2]
[408330898,1773439860805,-1000.0,0.0003148,2]
[408330899,1773439860815,-150.0,0.000315,2]
[408330900,1773439860824,-198.65337714,0.000315,2]
[408330901,1773439860834,-5772.75,0.000315,7]
[408330902,1773439860843,-505.0,0.0003152,3]
[408330903,1773439860855,-262.13,0.000316,12]
[408330904,1773439860864,-7922.5,0.000316,7]
[408330905,1773439860883,-1000.0,0.00031635,2]
[408330906,1773439860898,-2808.0,0.00031672,3]
[408330907,1773439860909,-2808.0,0.00031672,3]
[408330908,1773439860919,-3951.0,0.00031784,2]
[408330909,1773439860929,-5998.0,0.0003179,2]
[408330910,1773439860938,-2463.0,0.0003179,2]
[408330911,1773439860948,-3753.0,0.0003179,2]
[408330912,1773439860957,-500.0,0.0003187,30]
[408330913,1773439860966,-500.0,0.0003187,5]
[408330914,1773439860976,-507.40470513,0.0003187,30]
[408330915,1773439860986,-848.0,0.00031889,3]
[408330916,1773439860994,-161.0,0.00031889,3]
[408330917,1773439861003,-902.4485462,0.00031961,2]
[408330918,1773439861012,-1009.94610088,0.00031987,5]
[408330919,1773439861021,-1133.64603967,0.00031987,5]
[408330920,1773439861031,-1137.6742013,0.00031987,5]
[408330921,1773439861040,-1078.18931759,0.00031987,5]
[408330922,1773439861049,-1029.56047234,0.00031987,5]
[408330923,1773439861058,-1013.21656139,0.00031987,5]
[408330924,1773439861067,-1148.23065152,0.00031987,5]
[408330925,1773439861076,-1113.05764006,0.00031987,5]
[408330926,1773439861086,-1124.87644404,0.00031987,5]
[408330927,1773439861095,-1070.84425733,0.00031987,5]
[408330928,1773439861104,-1043.30098049,0.00031987,5]
[408330929,1773439861113,-1091.20437708,0.00031987,5]
[408330930,1773439861123,-1127.72562339,0.00031987,5]
[408330931,1773439861133,-1140.36743346,0.00031987,5]
[408330932,1773439861142,-1147.22333536,0.00031987,5]
[408330933,1773439861152,-1053.93844998,0.00031987,5]
[408330934,1773439861161,-1135.68269382,0.00031987,5]
[408330935,1773439861170,-1090.43619905,0.00031987,5]
[408330936,1773439861179,-1044.83382076,0.00031987,5]
[408330937,1773439861188,-1025.68637443,0.00031987,5]
[408330938,1773439861319,-1013.39334406,0.00031987,5]
[408330939,1773439861328,-1094.4075703,0.00031987,5]
[408330940,1773439861339,-1127.72730218,0.00031987,5]
[408330941,1773439861347,-1010.78570109,0.00031987,5]
[408330942,1773439861357,-1114.94125376,0.00031987,5]
[408330943,1773439861366,-1079.21109339,0.00031987,5]
[408330944,1773439861375,-1140.76332646,0.00031987,5]
[408330945,1773439861384,-1045.14244222,0.00031987,5]
[408330946,1773439861393,-1000.0,0.00032,30]
[408330947,1773439861403,-3000.0,0.00032,3]
[408330948,1773439861412,-620.0,0.00032,2]
[408330949,1773439861422,-160.0,0.00032,14]
[408330950,1773439861431,-152.0,0.00032097,7]
[408330951,1773439861440,-1000.0,0.00032118,2]
[408330952,1773439861449,-4372.0,0.00032156,2]
[408330953,1773439861458,-157.02,0.00032192,2]
[408330954,1773439861467,-5772.75,0.000322,7]
[408330955,1773439861478,-503.30544762,0.00032207,7]
[408330956,1773439861488,-150.0,0.00032219,2]
[408330957,1773439861497,-1883.2386578,0.00032219,20]
[408330958,1773439861508,-160.0,0.00032243,14]
[408330959,1773439861517,-1000.0,0.00032248,2]
[408330960,1773439861527,-2808.0,0.0003225,11]
[408330961,1773439861536,-900.08890257,0.000323,2]
[408330962,1773439861545,-7922.5,0.000323,7]
[408330963,1773439861554,-150.0,0.0003234,2]
[408330964,1773439861564,-505.0,0.00032342,4]
[408330965,1773439861574,-500.0,0.00032352,7]
[408330966,1773439861583,-500.0,0.00032412,7]
[408330967,1773439861592,-2808.0,0.00032488,11]
[408330968,1773439861601,-2500.0,0.00032494,14]
[408330969,1773439861611,-558.73456222,0.00032577,2]
[408330970,1773439861620,-200.0,0.000326,12]
[408330971,1773439861630,-200.0,0.00032613,2]
[408330972,1773439861642,-200.0,0.00032622,2]
[408330973,1773439861652,-2000.0,0.00032677,2]
[408330974,1773439861662,-1000.0,0.00032682,2]
[408330975,1773439861672,-5772.75,0.000327,7]
[408330976,1773439861681,-2808.0,0.0003271,11]
[408330977,1773439861690,-1000.0,0.00032768,14]
[408330978,1773439861699,-500.0,0.00032768,14]
[408330979,1773439861708,-538.4,0.00032775,2]
[408330980,1773439861717,-2000.0,0.00032777,2]
[408330981,1773439861727,-4863.75450988,0.000328,2]
[408330982,1773439861737,-204.0,0.000328,12]
[408330983,1773439861746,-7922.5,0.000328,7]
[408330984,1773439861755,-260.0,0.000328,26]
[408330985,1773439861764,-150.82953139,0.000328,2]
[408330986,1773439861776,-1009.37392751,0.00032816,30]
[408330987,1773439861786,-1000.0,0.00032825,2]
[408330988,1773439861796,-152.0,0.00032845,8]
[408330989,1773439861806,-2735.0,0.00032869,11]
[408330990,1773439861817,-400.0,0.0003287,2]
[408330991,1773439861827,-300.0,0.0003287,2]
[408330992,1773439861836,-1733.13958834,0.0003287,4]
[408330993,1773439861846,-229.13512625,0.0003287,2]
[408330994,1773439861855,-342.74881184,0.00032876,2]
[408330995,1773439861864,-376.68836015,0.00032876,2]
[408330996,1773439861873,-397.97398779,0.00032876,2]
[408330997,1773439861882,-207.40478254,0.00032876,2]
[408330998,1773439861891,-169.91482866,0.00032876,2]
[408330999,1773439861900,-422.29010124,0.00032876,2]
[408331000,1773439861910,-500.0,0.00032876,2]
[408331001,1773439861920,-438.28576922,0.00032876,2]
[408331002,1773439861929,-184.196231,0.00032877,7]
[408331003,1773439861939,-184.196231,0.00032877,7]
[408331004,1773439861948,-184.196231,0.00032877,7]
[408331005,1773439861957,-184.196231,0.00032877,7]
[408331006,1773439861966,-184.196231,0.00032877,7]
[408331007,1773439861975,-184.196231,0.00032877,7]
[408331008,1773439861985,-184.196229,0.00032877,7]
[408331009,1773439861994,-151.0,0.00032877,7]
[408331010,1773439862003,-224.769904,0.00032877,7]
[408331011,1773439862012,-172.4618,0.00032877,2]
[408331012,1773439862022,-172.4618,0.00032877,2]
[408331013,1773439862031,-172.4618,0.00032877,2]
[408331014,1773439862040,-172.4618,0.00032877,2]
[408331015,1773439862050,-172.4618,0.00032877,2]